bitfinex/quotes_ETHUSD_20250215
["timestamp","ask_amount","ask_price","bid_price","bid_amount"]
[1739621529685,5.231967,2710.1,2709.5,5.38]
[1739621529837,3.69056,2709.7,2709.5,5.38]
[1739621530255,3.69058,2709.6,2709.5,5.38]
[1739621530450,3.69056,2709.7,2709.5,5.38]
[1739621533640,0.262,2709.8,2709.5,5.38]
[1739621533833,3.95239,2709.8,2709.5,5.38]
[1739621534569,0.262,2709.8,2709.6,0.7616]
[1739621535150,3.95231,2709.8,2709.6,0.7616]
[1739621535545,0.262,2709.8,2709.6,0.7616]
[1739621536576,3.69032,2709.8,2709.6,0.7616]
[1739621543078,7.38072,2709.8,2709.6,0.7616]
[1739621543278,3.69044,2709.7,2709.6,0.7616]
[1739621543480,3.69044,2709.7,2709.5,5.38]
[1739621544647,3.69058,2709.6,2709.5,5.38]
[1739621544981,3.69099,2709.3,2709.2,5.38]
[1739621546597,0.8046,2709.5,2708.9,5.38]
[1739621546910,3.69139,2709.0,2708.9,5.38]
[1739621548946,4.47399,2709.1,2708.9,5.38]
[1739621549482,8.16538,2709.1,2708.9,5.38]
[1739621549651,3.69139,2709.0,2708.9,5.38]
[1739621550053,0.262,2709.2,2708.9,6.1986]
[1739621550054,3.95314,2709.2,2708.9,6.1986]
[1739621551691,0.262,2709.2,2708.9,6.1986]
[1739621551896,3.69126,2709.1,2708.9,6.1986]
[1739621552487,0.262,2709.2,2708.9,6.1986]
[1739621552687,3.69133,2709.1,2708.9,6.1986]
[1739621552886,7.38267,2709.1,2708.9,6.1986]
[1739621553093,3.69139,2709.0,2708.9,6.1986]
[1739621553587,3.95314,2709.2,2708.9,6.1986]
[1739621554459,3.69106,2709.3,2708.9,6.1986]
[1739621554870,3.95306,2709.3,2708.9,6.1986]
[1739621555193,3.6912,2709.2,2708.9,6.1986]
[1739621555564,0.262,2709.3,2708.9,6.1986]
[1739621556090,3.95306,2709.3,2708.9,6.1986]
[1739621556297,3.69116,2709.2,2708.9,6.1986]
[1739621557069,0.262,2709.3,2708.9,6.1986]
[1739621557601,3.95273,2709.5,2709.0,0.8186]
[1739621559105,0.262,2709.6,2709.0,6.1986]
[1739621559307,3.95265,2709.6,2709.1,3.69112]
[1739621561105,3.95265,2709.6,2709.0,6.1986]
[1739621561274,3.69074,2709.5,2709.0,9.88999]
[1739621562272,3.95265,2709.6,2709.0,9.88999]
[1739621562484,3.95265,2709.6,2709.0,14.939464]
[1739621562685,3.95265,2709.6,2709.1,3.69117]
[1739621562871,3.95265,2709.6,2709.0,11.248074]
[1739621563103,3.95265,2709.6,2709.0,7.556764]
[1739621563488,7.64336,2709.6,2709.0,7.556764]
[1739621563714,7.64336,2709.6,2709.0,11.248134]
[1739621563887,3.69085,2709.4,2709.0,7.556764]
[1739621564508,3.69103,2709.3,2709.0,6.1986]
[1739621567113,3.95267,2709.6,2709.0,6.1986]
[1739621567307,3.69077,2709.5,2709.0,9.88994]
[1739621567494,3.95267,2709.6,2709.0,6.1986]
[1739621567698,3.69092,2709.4,2709.0,6.1986]
[1739621571993,3.95265,2709.6,2709.0,6.1986]
[1739621572190,3.6908,2709.5,2709.0,6.1986]
[1739621572725,3.6908,2709.5,2709.0,9.88998]
[1739621573522,3.95258,2709.6,2709.1,4.52895053]
[1739621573723,3.95258,2709.6,2709.1,9.58015749]
[1739621573899,3.95258,2709.6,2709.1,5.85201005]
[1739621574098,3.95258,2709.6,2709.1,5.88891742]
[1739621574826,3.95258,2709.6,2709.1,5.85201005]
[1739621575627,3.95258,2709.6,2709.1,5.05121005]
[1739621575931,3.95258,2709.6,2709.3,0.8008]
[1739621576817,3.95258,2709.6,2709.3,6.1808]
[1739621577945,3.6904,2709.8,2709.3,6.1808]
[1739621578162,3.9524,2709.8,2709.3,9.90868793]
[1739621578451,3.69054,2709.7,2709.3,6.1808]
[1739621579449,3.69054,2709.7,2709.3,7.65842544]
[1739621579823,3.69065,2709.6,2709.3,7.65842544]
[1739621580028,3.69065,2709.6,2709.3,6.1808]
[1739621580348,3.69054,2709.7,2709.3,6.1808]
[1739621580561,7.38108,2709.7,2709.3,6.1808]
[1739621581122,3.69085,2709.4,2709.3,5.38]
[1739621584725,6.20428388,2709.4,2709.3,5.38]
[1739621584919,7.26613044,2709.4,2709.3,5.38]
[1739621585235,7.81613044,2709.4,2709.3,5.38]
[1739621587424,1.363,2709.2,2708.5,6.1502]
[1739621587780,7.38379,2708.7,2708.5,6.1502]
[1739621587920,3.69194,2708.6,2708.5,6.1502]
[1739621588287,3.69194,2708.6,2708.5,5.38]
[1739621588422,3.69247,2708.3,2708.0,0.7702]
[1739621588858,3.69257,2708.2,2708.0,0.7702]
[1739621589453,3.69257,2708.2,2707.9,5.38]
[1739621590025,3.69263,2708.1,2707.9,5.38]
[1739621591426,1.54929643,2708.1,2707.6,5.38]
[1739621591629,3.69317,2707.7,2707.6,5.38]
[1739621591949,4.32238975,2707.7,2707.1,5.38]
[1739621592158,3.6933,2707.6,2707.1,5.38]
[1739621592452,0.262,2707.5,2707.2,0.7702]
[1739621592650,0.262,2707.5,2707.2,1.75463]
[1739621593662,0.262,2707.5,2707.2,0.7702]
[1739621593663,3.95545,2707.5,2707.2,0.7702]
[1739621594260,0.262,2707.5,2707.2,0.7702]
[1739621594468,3.69309,2707.8,2707.2,4.46403]
[1739621594662,0.262,2707.7,2707.2,4.46403]
[1739621594956,0.262,2707.7,2707.2,4.50096481]
[1739621595162,0.262,2707.7,2707.2,5.48906129]
[1739621595363,0.262,2707.7,2707.2,1.79523129]
[1739621595565,0.262,2707.7,2707.2,0.80713482]
[1739621595742,0.262,2707.7,2707.2,0.7702]
[1739621596065,3.69339,2707.6,2707.2,0.7702]
[1739621597767,3.69339,2707.6,2707.2,6.1502]
[1739621599333,0.262,2707.7,2707.2,9.84401]
[1739621599533,0.262,2707.7,2707.3,3.73056455]
[1739621599952,0.262,2707.7,2707.2,10.828411]
[1739621600434,0.262,2707.7,2707.4,3.69355]
[1739621600945,3.95498,2707.9,2707.4,3.69355]
[1739621601357,3.95498,2707.9,2707.3,0.03693258]
[1739621601669,3.69266,2708.1,2707.3,1.12345894]
[1739621601833,0.262,2708.0,2707.6,3.69329]
[1739621602056,3.69266,2708.1,2707.5,3.73026864]
[1739621602241,3.69291,2707.9,2707.4,4.52346]
[1739621603578,3.69291,2707.9,2707.5,5.38]
[1739621603954,3.69276,2708.0,2707.5,5.38]
[1739621604752,3.95466,2708.1,2707.5,9.07332]
[1739621604952,7.64737,2708.1,2707.5,9.07332]
[1739621605551,3.69276,2708.0,2707.5,9.07332]
[1739621605752,3.69276,2708.0,2707.5,5.38]
[1739621605973,3.69276,2708.0,2707.5,9.07343]
[1739621606270,3.95466,2708.1,2707.5,9.07343]
[1739621606474,3.95466,2708.1,2707.6,3.69329]
[1739621607636,3.95466,2708.1,2707.6,3.73021925]
[1739621607841,7.64739,2708.1,2707.6,3.69329]
[1739621608041,3.69277,2708.0,2707.5,5.38]
[1739621608242,3.69277,2708.0,2707.5,9.07343]
[1739621608643,3.69277,2708.0,2707.5,11.41676264]
[1739621609373,3.69277,2708.0,2707.5,7.72333264]
[1739621609543,3.69301,2707.9,2707.5,5.38]
[1739621610143,3.69277,2708.0,2707.5,9.07341]
[1739621610775,3.69277,2708.0,2707.5,5.38]
[1739621610956,3.69292,2707.9,2707.5,5.38]
[1739621611981,3.69277,2708.0,2707.5,5.38]
[1739621612180,7.38564,2708.0,2707.5,5.38]
[1739621612675,3.69277,2708.0,2707.5,5.38]
[1739621612971,7.38563,2708.0,2707.5,5.38]
[1739621613177,3.6929,2707.9,2707.5,5.38]
[1739621614557,3.95469,2708.1,2707.5,9.07337]
[1739621614777,3.69282,2708.0,2707.5,10.31326994]
[1739621614955,3.69282,2708.0,2707.5,9.07337]
[1739621615880,3.95469,2708.1,2707.5,12.76672]
[1739621616283,3.95469,2708.1,2707.6,3.69322]
[1739621616968,7.6474,2708.1,2707.6,3.69322]
[1739621617281,3.95469,2708.1,2707.5,5.38]
[1739621617483,3.95469,2708.1,2707.5,9.07334]
[1739621617682,3.95469,2708.1,2707.5,5.38]
[1739621617876,3.95469,2708.1,2707.6,3.69326]
[1739621618186,7.64742,2708.1,2707.6,3.69326]
[1739621618484,3.95469,2708.1,2707.6,3.69326]
[1739621618681,3.95469,2708.1,2707.7,3.69316]
[1739621618876,0.262,2708.1,2707.7,9.07316]
[1739621620149,4.48425,2708.5,2707.8,0.7512]
[1739621620358,3.95423,2708.4,2707.9,3.6928]
[1739621620658,3.69223,2708.4,2707.9,3.6928]
[1739621620863,3.95423,2708.4,2707.9,3.6928]
[1739621621063,3.69236,2708.3,2707.8,4.44421]
[1739621621260,0.262,2708.4,2707.9,3.69286]
[1739621621460,0.262,2708.4,2707.9,3.69282]
[1739621621865,0.262,2708.4,2708.0,4.44396]
[1739621622176,0.262,2708.4,2708.0,0.7512]
[1739621622353,0.262,2708.4,2707.8,0.7512]
[1739621622553,0.262,2708.4,2707.7,5.38]
[1739621622554,4.51505,2708.3,2707.7,5.38]
[1739621622758,3.69269,2708.1,2707.7,5.38]
[1739621623192,3.69277,2708.0,2707.7,5.38]
[1739621623792,3.69301,2707.9,2707.7,5.38]
[1739621624988,3.6927,2708.1,2707.7,5.38]
[1739621625205,3.69276,2708.0,2707.7,5.38]
[1739621625494,3.69292,2707.9,2707.7,5.38]
[1739621625692,0.262,2708.0,2707.7,5.38]
[1739621625993,0.262,2708.0,2707.8,0.7831]
[1739621626794,0.262,2708.0,2707.7,5.38]
[1739621626959,3.69297,2707.9,2707.7,5.38]
[1739621627159,4.457753,2707.9,2707.7,5.38]
[1739621627359,4.51363,2707.8,2707.7,5.38]
[1739621628191,3.69338,2707.6,2707.3,5.38]
[1739621628368,3.69338,2707.6,2707.0,5.38]
[1739621628572,4.144778,2707.6,2707.0,9.07412]
[1739621629188,4.144778,2707.6,2707.1,3.69398]
[1739621630895,0.451398,2707.6,2707.2,3.69383]
[1739621631590,4.144718,2707.6,2707.0,9.07402]
[1739621631784,3.69332,2707.6,2707.0,9.07402]
[1739621632078,3.69332,2707.6,2707.1,3.69389]
[1739621633171,3.69332,2707.6,2707.1,9.07389]
[1739621634804,5.23479611,2707.8,2707.1,5.38]
[1739621634805,3.69344,2707.5,2707.1,5.38]
[1739621635185,0.8206,2707.4,2707.1,5.38]
[1739621636305,0.8206,2707.4,2707.1,9.07391]
[1739621639508,0.8206,2707.4,2707.1,5.38]
[1739621639803,0.8206,2707.4,2707.1,9.0739]
[1739621640008,3.69333,2707.6,2707.1,9.0739]
[1739621640387,4.51128,2707.7,2707.2,3.69384]
[1739621640706,3.69277,2708.0,2707.4,0.8164]
[1739621640906,0.262,2707.9,2707.5,3.69336]
[1739621641082,0.262,2707.9,2707.5,9.07336]
[1739621642014,3.95491,2707.9,2707.5,5.38]
[1739621642411,3.69249,2708.2,2707.7,3.69307]
[1739621642717,0.262,2708.0,2707.7,3.69307]
[1739621643013,0.8181,2707.9,2707.5,9.07337]
[1739621643400,3.69311,2707.8,2707.5,5.38]
[1739621643581,4.5114,2707.6,2707.5,5.38]
[1739621645213,4.5114,2707.6,2707.1,5.38]
[1739621646910,0.8181,2707.6,2707.1,5.38]
[1739621647113,0.55,2707.8,2707.3,3.69368]
[1739621647310,1.74699185,2707.8,2707.3,4.51198]
[1739621647513,0.262,2707.8,2707.4,3.69353]
[1739621647818,0.262,2707.8,2707.4,3.6935]
[1739621648111,0.812,2707.8,2707.3,0.8183]
[1739621648276,3.69331,2707.6,2707.1,5.38]
[1739621648486,4.50605,2707.5,2707.1,5.38]
[1739621650427,3.6938,2707.3,2707.1,5.38]
[1739621652017,0.8126,2707.2,2707.1,5.38]
[1739621656923,4.52098,2707.4,2707.1,5.38]
[1739621657926,3.69374,2707.3,2707.1,5.38]
[1739621658791,4.52098,2707.4,2707.1,5.38]
[1739621660222,0.8274,2707.4,2707.1,5.38]
[1739621660428,4.52101,2707.4,2707.1,5.38]
[1739621661742,1.648852,2707.4,2707.1,5.38]
[1739621661952,3.69372,2707.3,2707.1,5.38]
[1739621664528,3.69385,2707.2,2707.1,5.38]
[1739621667349,3.69372,2707.3,2707.1,5.38]
[1739621668139,3.69385,2707.2,2707.1,5.38]
[1739621668796,4.67123895,2707.2,2707.1,5.38]
[1739621669158,5.22123895,2707.2,2707.1,5.38]
[1739621670857,3.69401,2707.1,2706.7,5.38]
[1739621672875,1.52738895,2707.2,2706.7,5.38]
[1739621673031,4.24387,2707.2,2706.7,9.07449]
[1739621673665,3.69408,2707.1,2706.7,5.38]
[1739621674061,4.24387,2707.2,2706.7,5.38]
[1739621674968,3.69401,2707.1,2706.7,5.38]
[1739621679059,4.24387,2707.2,2706.7,5.38]
[1739621679360,3.694,2707.1,2706.7,5.38]
[1739621679755,7.93783,2707.2,2706.7,5.38]
[1739621679959,3.69399,2707.1,2706.7,5.38]
[1739621680377,3.69399,2707.1,2706.7,9.07453]
[1739621681361,3.69399,2707.1,2706.7,5.38]
[1739621682066,2.216,2707.0,2706.7,5.38]
[1739621682360,3.69399,2707.1,2706.7,5.38]
[1739621685129,3.69413,2707.0,2706.7,5.38]
[1739621686265,4.24386,2707.2,2706.7,5.38]
[1739621686463,4.82473275,2707.2,2706.7,5.38]
[1739621687045,1.13087275,2707.2,2706.7,5.38]
[1739621687244,4.24386,2707.2,2706.7,5.38]
[1739621687446,3.69407,2707.1,2706.7,5.38]
[1739621687767,0.262,2707.0,2706.7,5.38]
[1739621688564,3.95613,2707.0,2706.7,5.38]
[1739621690172,7.65036,2707.0,2706.7,5.38]
[1739621690338,3.69426,2706.9,2706.7,5.38]
[1739621691041,0.262,2707.0,2706.7,5.38]
[1739621691042,3.95616,2707.0,2706.7,5.38]
[1739621692174,0.262,2707.0,2706.7,5.38]
[1739621692748,3.95616,2707.0,2706.7,5.38]
[1739621693376,0.262,2707.0,2706.7,5.38]
[1739621693684,3.95622,2707.0,2706.7,5.38]
[1739621695673,3.95621,2707.0,2706.7,5.38]
[1739621696795,3.9562,2707.0,2706.7,5.38]
[1739621697282,3.69428,2706.9,2706.7,5.38]
[1739621703396,3.69439,2706.8,2706.7,5.38]
[1739621703598,4.8134,2707.0,2706.7,5.38]
[1739621703775,4.0554,2707.0,2706.7,5.38]
[1739621703974,8.524564,2707.0,2706.7,5.38]
[1739621704175,3.69434,2706.9,2706.7,5.38]
[1739621704383,3.69439,2706.8,2706.7,5.38]
[1739621704590,4.830334,2707.0,2706.7,5.38]
[1739621704978,3.69434,2706.9,2706.7,5.38]
[1739621705689,3.69439,2706.8,2706.7,5.38]
[1739621706171,4.5468694,2706.8,2706.7,5.38]
[1739621707503,4.5468694,2706.8,2706.4,0.7601]
[1739621708005,0.8524794,2706.8,2706.4,0.7601]
[1739621708168,3.69454,2706.7,2706.4,0.7601]
[1739621710421,4.5468794,2706.8,2706.4,0.7601]
[1739621710902,3.69458,2706.7,2706.4,0.7601]
[1739621711119,5.20956542,2706.9,2706.4,4.45497]
[1739621711414,8.90392542,2706.9,2706.4,4.45497]
[1739621711708,5.20953542,2706.9,2706.4,4.45497]
[1739621711925,0.262,2706.8,2706.5,1.70354819]
[1739621712092,0.262,2706.8,2706.5,5.39833819]
[1739621713307,0.262,2706.8,2706.5,1.70354819]
[1739621713514,0.262,2706.8,2706.5,5.39834819]
[1739621713895,4.71343542,2706.9,2706.5,1.70354819]
[1739621714176,3.6944,2706.8,2706.4,0.7601]
[1739621714379,1.01917542,2706.9,2706.4,4.45501]
[1739621715002,4.71345542,2706.9,2706.4,4.45501]
[1739621716086,1.01917542,2706.9,2706.4,4.45496]
[1739621716690,4.71343542,2706.9,2706.4,4.45496]
[1739621716981,4.71343542,2706.9,2706.4,4.45495]
[1739621717181,1.01917542,2706.9,2706.4,8.14981]
[1739621717388,1.01917542,2706.9,2706.4,4.45495]
[1739621718603,1.01917542,2706.9,2706.4,8.14981]
[1739621719012,1.01917542,2706.9,2706.4,4.45495]
[1739621719312,1.01917542,2706.9,2706.5,3.69479]
[1739621719810,1.01917542,2706.9,2706.4,9.83495]
[1739621720306,4.71345542,2706.9,2706.4,13.52982]
[1739621720492,1.01917542,2706.9,2706.5,3.6947]
[1739621721978,1.01917542,2706.9,2706.4,9.83495]
[1739621722177,1.01917542,2706.9,2706.5,1.70354819]
[1739621722409,4.71356542,2706.9,2706.5,1.70354819]
[1739621723390,8.40795542,2706.9,2706.5,1.70354819]
[1739621723591,3.69457,2706.7,2706.4,6.1401]
[1739621723808,3.69457,2706.7,2706.4,5.38]
[1739621724617,3.69474,2706.6,2706.4,5.38]
[1739621724913,3.69467,2706.6,2706.4,5.38]
[1739621725308,0.7627,2706.8,2706.2,5.38]
[1739621725482,0.7627,2706.8,2705.9,2.46824819]
[1739621725483,3.6951,2706.3,2705.9,2.46824819]
[1739621725910,3.6951,2706.3,2705.9,1.70354819]
[1739621726114,3.6956,2706.0,2705.7,1.70354819]
[1739621726319,3.6956,2706.0,2705.5,8.75]
[1739621726320,4.45841,2705.9,2705.5,0.7647]
[1739621726482,4.45841,2705.9,2705.3,5.39995819]
[1739621726815,4.45841,2705.9,2705.3,6.16465819]
[1739621727014,4.45841,2705.9,2705.5,1.70354819]
[1739621728186,0.7627,2705.9,2705.5,5.39961819]
[1739621728391,0.262,2706.0,2705.7,5.39940819]
[1739621728706,0.262,2706.0,2705.7,2.48494819]
[1739621729093,3.95752,2706.0,2705.7,2.48494819]
[1739621729694,3.95752,2706.0,2705.5,1.70354819]
[1739621729890,3.69574,2705.9,2705.5,1.70354819]
[1739621730107,0.7774,2705.8,2705.5,1.70354819]
[1739621730933,4.47317,2705.8,2705.5,1.70354819]
[1739621732108,0.7774,2705.8,2705.5,1.70354819]
[1739621732510,2.216,2705.7,2705.5,1.70354819]
[1739621732700,0.7774,2705.8,2705.5,1.70354819]
[1739621734989,0.7774,2706.1,2705.7,1.70354819]
[1739621735237,0.262,2706.0,2705.7,5.39936819]
[1739621735718,0.262,2706.0,2705.7,1.70354819]
[1739621736097,3.95756,2706.0,2705.7,1.70354819]
[1739621736304,3.95756,2706.0,2705.6,0.7814]
[1739621736625,0.262,2706.0,2705.6,0.7814]
[1739621737725,1.027279,2706.0,2705.5,1.70354819]
[1739621737916,4.46343,2705.9,2705.5,1.70354819]
[1739621738907,3.69578,2705.8,2705.5,1.70354819]
[1739621739207,3.69578,2705.8,2705.4,5.38]
[1739621739821,3.69586,2705.8,2705.4,5.38]
[1739621740070,4.6145169,2705.8,2705.4,5.38]
[1739621740705,0.9186569,2705.8,2705.4,5.38]
[1739621741020,8.15916,2705.9,2705.5,1.70354819]
[1739621741534,0.262,2705.8,2705.5,5.39970819]
[1739621743328,0.262,2705.8,2705.5,1.70354819]
[1739621744028,3.95779,2705.8,2705.5,1.70354819]
[1739621745621,3.69597,2705.7,2705.4,5.38]
[1739621745797,3.69617,2705.6,2705.4,5.38]
[1739621746012,0.8059,2705.5,2705.4,5.38]
[1739621746634,4.50207,2705.5,2705.4,5.38]
[1739621746846,4.50207,2705.5,2705.1,2.52044819]
[1739621747247,4.168529,2705.7,2705.1,6.21709819]
[1739621747524,4.3607529,2705.6,2705.3,1.70354819]
[1739621747726,4.3607529,2705.6,2705.1,0.8169]
[1739621747920,0.6646529,2705.6,2705.1,4.51354]
[1739621748313,4.3607329,2705.6,2705.1,4.51354]
[1739621748551,5.09126809,2705.6,2705.1,4.51354]
[1739621748926,0.6646529,2705.6,2705.1,4.51354]
[1739621749113,3.69598,2705.7,2705.1,4.51354]
[1739621749430,0.262,2705.8,2705.1,4.51354]
[1739621749431,0.262,2705.6,2705.3,7.3928]
[1739621749605,0.262,2705.6,2705.5,0.8169]
[1739621749809,0.262,2705.6,2705.4,3.6963]
[1739621749810,0.262,2705.6,2705.3,4.51327]
[1739621750245,0.262,2705.6,2705.3,0.8169]
[1739621750452,0.262,2705.6,2705.0,12.59397442]
[1739621750613,4.353831,2705.6,2705.1,3.69668]
[1739621750813,1.463691,2705.6,2705.1,3.69668]
[1739621751015,1.463691,2705.6,2705.1,7.39332]
[1739621751333,1.463691,2705.6,2705.1,3.69664]
[1739621751650,1.463691,2705.6,2705.2,3.69658]
[1739621751849,1.0679,2705.6,2705.2,3.69658]
[1739621752023,0.262,2705.6,2705.2,3.69658]
[1739621752351,0.262,2705.6,2705.1,3.69664]
[1739621752543,3.9581,2705.6,2705.1,3.69664]
[1739621753060,2.216,2705.5,2705.1,3.69664]
[1739621753217,3.9581,2705.6,2705.1,3.69664]
[1739621753417,1.10799,2705.6,2705.1,3.69664]
[1739621753632,0.262,2705.6,2705.1,3.69664]
[1739621753827,0.262,2705.6,2705.2,3.69652]
[1739621754769,3.95811,2705.6,2705.1,3.69664]
[1739621755060,3.95811,2705.6,2705.2,3.69651]
[1739621755061,0.262,2705.6,2705.2,3.69651]
[1739621755260,0.8059,2705.8,2705.4,3.69628]
[1739621755463,0.262,2705.6,2705.4,4.51318]
[1739621756060,0.262,2705.6,2705.4,0.8169]
[1739621756462,0.262,2705.6,2705.2,3.69646]
[1739621756632,1.0679,2705.6,2705.2,3.69646]
[1739621756962,4.76402,2705.6,2705.1,0.8169]
[1739621757339,4.76402,2705.6,2705.1,4.5136]
[1739621758328,4.76402,2705.6,2705.1,0.8169]
[1739621758534,5.610013,2705.6,2705.0,12.59400442]
[1739621758737,3.69621,2705.5,2705.0,12.59400442]
[1739621758959,3.69621,2705.5,2705.0,16.29079442]
[1739621759130,3.69621,2705.5,2705.0,12.59400442]
[1739621760537,1.913893,2705.6,2705.1,3.69662]
[1739621760867,1.913893,2705.6,2705.0,12.59400442]
[1739621761273,3.69618,2705.5,2705.0,12.59400442]
[1739621762771,4.76394,2705.6,2705.1,3.69665]
[1739621762934,1.0679,2705.6,2705.1,3.69665]
[1739621763472,4.76395,2705.6,2705.0,14.30044786]
[1739621763668,1.0679,2705.6,2705.1,3.6967]
[1739621764268,4.76396,2705.6,2705.1,3.6967]
[1739621764638,1.0679,2705.6,2705.1,3.69672]
[1739621764841,1.0679,2705.6,2705.2,3.69647]
[1739621765066,3.69579,2705.8,2705.3,4.46983]
[1739621765269,0.262,2705.6,2705.3,4.46983]
[1739621765871,0.262,2705.6,2705.3,4.46976]
[1739621766365,0.262,2705.6,2705.3,0.7734]
[1739621767769,4.44409468,2706.0,2705.5,1.7052287]
[1739621767969,0.262,2705.9,2705.7,1.7052287]
[1739621768476,3.69578,2705.8,2705.5,1.7052287]
[1739621768980,0.7533,2705.7,2705.3,2.4786287]
[1739621769377,3.69578,2705.8,2705.5,1.7052287]
[1739621769583,1.0153,2705.9,2705.5,5.4013587]
[1739621769959,1.0153,2705.9,2705.5,1.7052287]
[1739621769960,3.69585,2705.8,2705.5,1.7052287]
[1739621770154,3.69585,2705.8,2705.3,2.4786287]
[1739621770155,3.69593,2705.7,2705.3,2.4786287]
[1739621770367,3.69585,2705.8,2705.3,2.4786287]
[1739621770678,3.69604,2705.6,2705.3,1.7052287]
[1739621771180,3.69597,2705.7,2705.3,1.7052287]
[1739621772449,4.166965,2705.8,2705.3,1.7052287]
[1739621772450,4.166965,2705.8,2705.3,5.4016687]
[1739621772661,7.39174,2705.8,2705.3,5.4016687]
[1739621772958,3.69585,2705.8,2705.3,5.4016687]
[1739621773581,7.39173,2705.8,2705.3,5.4016687]
[1739621773787,7.39173,2705.8,2705.3,3.69644]
[1739621773988,3.69585,2705.8,2705.3,3.69644]
[1739621775073,1.0153,2705.9,2705.3,3.69644]
[1739621775273,1.0153,2705.9,2705.4,0.8134]
[1739621775470,3.6959,2705.7,2705.1,4.51003]
[1739621775671,3.69614,2705.6,2705.1,4.51003]
[1739621776160,4.45234,2705.6,2705.1,4.51003]
[1739621777471,3.6962,2705.5,2705.1,0.8134]
[1739621778486,0.7562,2705.6,2705.1,4.51002]
[1739621778892,0.7562,2705.6,2705.2,3.69651]
[1739621779192,3.6959,2705.7,2705.2,3.69651]
[1739621779592,7.39192,2705.7,2705.1,4.51002]
[1739621782496,3.69654,2705.3,2704.9,0.8134]
[1739621783020,3.69668,2705.2,2704.9,0.8134]
[1739621783163,4.45288,2705.2,2704.8,5.38]
[1739621784301,3.69672,2705.1,2704.8,5.38]
[1739621784723,4.45279,2705.2,2704.8,5.38]
[1739621785245,0.7562,2705.2,2704.8,5.38]
[1739621786426,3.69653,2705.3,2704.8,9.07711]
[1739621787643,3.6966,2705.2,2704.8,5.38]
[1739621788327,1.036812,2705.3,2704.8,9.07712]
[1739621788922,1.036812,2705.3,2704.8,5.38]
[1739621789118,3.6966,2705.2,2704.8,5.38]
[1739621790114,4.733332,2705.3,2704.8,9.07705]
[1739621790299,4.45258,2705.4,2704.8,12.77411]
[1739621790936,3.69646,2705.3,2704.8,9.07705]
[1739621791136,4.45258,2705.4,2704.8,9.07703]
[1739621791441,4.45258,2705.4,2705.0,0.755]
[1739621791933,4.45258,2705.4,2704.8,9.07703]
[1739621792137,4.45252,2705.4,2704.8,5.38]
[1739621792310,0.75746819,2705.5,2705.1,3.69669]
[1739621792516,0.262,2705.5,2705.1,3.69669]
[1739621792724,0.262,2705.5,2705.0,3.69676]
[1739621792924,0.262,2705.5,2705.1,3.69671]
[1739621793138,0.7773,2705.6,2705.0,4.2720459]
[1739621793352,0.262,2705.6,2705.3,0.755]
[1739621793523,0.262,2705.6,2705.4,3.69623]
[1739621794630,0.7773,2706.3,2705.5,0.755]
[1739621794887,0.7773,2706.5,2706.0,0.755]
[1739621795026,0.262,2706.4,2706.1,3.69524]
[1739621795232,0.3696,2706.9,2706.2,3.69513]
[1739621795528,0.3696,2706.7,2706.2,3.69513]
[1739621795767,1.14019893,2706.9,2706.3,3.69498]
[1739621796212,4.83445893,2706.9,2706.2,3.69513]
[1739621797521,4.57245893,2706.9,2706.2,3.69513]
[1739621797723,4.83445893,2706.9,2706.2,3.69513]
[1739621798059,3.69468,2706.6,2706.0,4.45044]
[1739621798256,3.69467,2706.7,2706.0,4.45044]
[1739621798468,3.69467,2706.7,2706.0,8.14583]
[1739621798760,3.69467,2706.7,2706.0,4.45039]
[1739621798910,0.7773,2706.6,2706.0,4.45039]
[1739621799248,0.7773,2706.6,2706.0,8.14576]
[1739621799432,0.7773,2706.6,2706.1,3.69522]
[1739621799957,4.63497389,2706.8,2706.2,3.69521]
[1739621800162,3.69446,2706.8,2706.2,3.69521]
[1739621800507,3.69446,2706.8,2706.1,3.5170459]
[1739621800759,3.69446,2706.8,2706.2,3.6952]
[1739621800926,1.0393,2706.9,2706.2,3.69513]
[1739621801125,1.0393,2706.9,2706.4,4.44993]
[1739621802310,0.7773,2706.9,2706.4,4.44993]
[1739621802512,3.79338,2707.0,2706.4,5.26802067]
[1739621802715,7.4876,2707.0,2706.4,10.64802067]
[1739621803019,3.69434,2706.9,2706.4,6.135]
[1739621804148,0.0992,2707.0,2706.4,6.135]
[1739621804317,3.6945,2706.8,2706.4,5.38]
[1739621805577,3.69454,2706.7,2706.4,5.38]
[1739621805723,4.46804,2706.7,2706.4,5.38]
[1739621805921,0.7735,2706.7,2706.4,5.38]
[1739621806123,3.6945,2706.8,2706.4,5.38]
[1739621806661,0.7735,2706.9,2706.4,5.38]
[1739621806829,4.46779,2706.9,2706.4,5.38]
[1739621807020,0.7735,2706.9,2706.4,5.38]
[1739621807227,0.0992,2707.0,2706.4,12.5919459]
[1739621807558,3.79337,2707.0,2706.4,12.5919159]
[1739621807754,3.79337,2707.0,2706.4,16.2867759]
[1739621808059,3.79337,2707.0,2706.4,12.5919059]
[1739621809656,3.79337,2707.0,2706.6,0.8295]
[1739621810963,7.48759,2707.0,2706.6,0.8295]
[1739621811162,3.69435,2706.9,2706.6,0.8295]